Cogmind - Beta 14 *** ADVENTURER MODE // 2025.03.07 @ 13:26:48 Player: poppyj Result: Destroyed by G-47 Trooper with Particle Gun Performance ------------- Evolutions (0) 0 Regions Visited (4) 800 Robots Destroyed (25) 125 Value Destroyed (591) 591 Prototype IDs (0) 0 Alien Tech Used (0) 0 Bonus (85) 85 TOTAL SCORE: 1601 Bonus ------- Follower Combat Kills 85 Cogmind --------- Core Integrity 0/250 Matter 300/300 Energy 250/250 System Corruption 0% Temperature Cool (9) Movement Walking (400) Ox4 Location -9/Mines Parts ------- > --- POWER (1) -------- Ion Engine > --- PROPULSION (2) --- Aluminum Leg Aluminum Leg > --- UTILITY (2) ------ Huge Storage Unit Makeshift Sensor Array > --- WEAPON (2) ------- Makeshift Laser Ripper > --- INVENTORY (25) --- Light Ion Engine Makeshift Power Source Aluminum Leg Flight Unit Heat Sink Humpback Medium Matter Pod (100) High-capacity Matter Pod (200) Visual Processing Unit Sensor Array Targeting Computer Power Shielding EM Pulse Gun Medium Laser Particle Gun Beam Cannon Assault Rifle Light Assault Rifle Mining Laser Welding Torch Explosive Trap Explosive Trap Explosive Trap Peak State ------------ > --- POWER ------------ Makeshift Power Source > --- PROPULSION ------- Aluminum Leg Aluminum Leg > --- UTILITY ---------- Huge Storage Unit Makeshift Sensor Array > --- WEAPON ----------- Particle Gun Makeshift Laser > --- INVENTORY -------- Ion Engine Light Ion Engine Light Treads Aluminum Leg Aluminum Leg Heat Sink Medium Matter Pod High-capacity Matter Pod Sensor Array Terrain Scanner Targeting Computer Power Shielding Propulsion Shielding EM Pulse Gun Medium Laser Beam Cannon Assault Rifle Light Assault Rifle Mining Laser Mining Laser Welding Torch Explosive Trap Explosive Trap Explosive Trap [Rating: 22] Favorites ----------- Power Ion Engine Engine Ion Engine Propulsion Aluminum Leg Treads Light Treads Leg Aluminum Leg Wheel Wheel Utility Huge Storage Unit Device Terrain Scanner Storage Huge Storage Unit Protection Propulsion Shielding Weapon Particle Gun Energy Gun Particle Gun Energy Cannon Beam Cannon Ballistic Gun Assault Rifle Slashing Weapon Ripper Build | -11 -10 -10 -10 -9 ------- Run | Yrd Mat Min Exi Min Slots Evolved . | . . . . . Power . | . . . . . Propulsion . | . . . . . Utility . | . . . . . Weapon . | . . . . . Parts Attached 29 | 8 11 2 5 3 Power 5 | 2 1 . 1 1 Engine 5 | 2 1 . 1 1 Core . | . . . . . Reactor . | . . . . . Propulsion 7 | 2 2 2 . 1 Treads 2 | 2 . . . . Leg 3 | . . 2 . 1 Wheel 2 | . 2 . . . Hover . | . . . . . Flight . | . . . . . Utility 5 | 1 3 . 1 . Device 2 | . 1 . 1 . Storage 2 | 1 1 . . . Processor . | . . . . . Hackware . | . . . . . Protection 1 | . 1 . . . Artifact . | . . . . . Weapon 12 | 3 5 . 3 1 Energy Gun 4 | 1 1 . 2 . Energy Cannon 4 | . 3 . 1 . Ballistic Gun 3 | 2 1 . . . Ballistic Cannon . | . . . . . Launcher . | . . . . . Special Weapon . | . . . . . Impact Weapon . | . . . . . Slashing Weapon 1 | . . . . 1 Piercing Weapon . | . . . . . Special Melee Weapon . | . . . . . Unidentified Prototypes . | . . . . . Parts Lost 2 | . 2 . . . Power . | . . . . . Propulsion 1 | . 1 . . . Utility 1 | . 1 . . . Weapon . | . . . . . Highest Loss Streak 2 | . 2 . . . To Critical Strikes . | . . . . . Average Slot Usage (%) 98 | . 90 99 99 100 Engine 13 | . 13 14 14 14 Treads 2 | . 16 . . . Leg 22 | . . 23 28 28 Wheel 2 | . 11 3 . . Device 12 | . 3 14 14 14 Storage 14 | . 14 14 14 14 Protection 1 | . 6 . . . Energy Gun 17 | . 5 14 19 26 Energy Cannon 7 | . 6 14 8 . Ballistic Gun 1 | . 11 . . . Peak Build Rating 22 | 6 10 10 22 22 Average Rating 13 | 4 7 9 15 20 On Entrance 9 | . 6 10 10 22 Naked Turns . | . . . . . Heaviest Build 95 | 14 92 92 94 95 Greatest Support 40 | 40 40 26 20 20 Greatest Overweight (x) 5 | . 4 5 4 4 Average Overweight (x) 3 | . 2 3 4 4 Largest Inventory Capacity 25 | 8 25 25 25 25 Average Capacity 24 | 7 23 25 25 25 Most Carried 25 | 6 25 25 25 25 Average Carried 21 | 4 14 22 22 24 Final Capacity 25 | 8 25 25 25 25 Final Carried 25 | 6 25 22 25 24 Class Distribution -------------------- 100% | Mutant Dominant Class ---------------- Mutant | -10/Materials Mutant | -10/Mines Mutant | -10/Exiles Mutant | -9/Mines Resources | -11 -10 -10 -10 -9 ----------- Run | Yrd Mat Min Exi Min Matter Collected 896 | 138 379 251 68 60 Remotely . | . . . . . Salvage Created 755 | . 404 251 45 55 Parts 57 | . 38 12 . 7 Haulers Intercepted 1 | . 1 . . . Recyclers Shooed . | . . . . . Parts Field Recycled . | . . . . . Retrieved Matter . | . . . . . Parts Self-Destructed . | . . . . . Prevented . | . . . . . Kills | -11 -10 -10 -10 -9 ------- Run | Yrd Mat Min Exi Min Combat Hostiles Destroyed 20 | . 10 6 . 4 Melee 4 | . . . . 4 Guns 7 | . 6 1 . . Cannons 9 | . 4 5 . . Classes Destroyed 5 | . 5 . . . Builder 1 | . 1 . . . Hauler 1 | . 1 . . . Watcher 3 | . 3 . . . Swarmer 9 | . 5 . . 4 Grunt 11 | . 5 6 . . Best Kill Streak 4 | . 4 2 . 4 Combat Bots Only 4 | . 3 2 . 4 Max Kills in Single Turn 1 | . 1 1 . 1 Gunslinging . | . . . . . Exploded . | . . . . . Melee 1 | . . . . 1 Uniques/NPCs Destroyed . | . . . . . Combat | -11 -10 -10 -10 -9 -------- Run | Yrd Mat Min Exi Min Hostile Shots Fired 165 | . 108 30 . 27 Missed 30 | . 20 8 . 2 Damage Taken 1083 | . 711 220 . 152 Core 253 | . 114 85 . 54 Absorbed by Shields . | . . . . . Redirected to Shielding 50 | . 50 . . . Ignored by Resistances 331 | . 215 65 . 51 Regen/Repaired (Parts) 385 | . 385 . . . Core Remaining (%) 100 | 100 . . . . Volleys Fired 53 | . 29 16 6 2 Largest 2 | . 2 2 2 1 Hottest 125 | . 125 125 125 50 Shots Fired 103 | . 58 31 12 2 Gun 68 | . 45 15 6 2 Cannon 35 | . 13 16 6 . Launcher . | . . . . . Special . | . . . . . Kinetic 27 | . 27 . . . Thermal 60 | . 15 31 12 2 Explosive . | . . . . . Electromagnetic 16 | . 16 . . . Robot Hit Streak 8 | . 7 7 8 1 Robot Miss Streak 4 | . 4 4 1 1 Penetration Max . | . . . . . Secondary Targets . | . . . . . Shots Hit Robots 74 | . 37 20 8 9 Core Hits 35 | . 20 10 2 3 Critical Kills . | . . . . . Critical Parts Destroyed . | . . . . . Critical Strikes . | . . . . . Melee Attacks 10 | . . . . 10 Impact . | . . . . . Slashing 10 | . . . . 10 Piercing . | . . . . . Sneak Attacks . | . . . . . Combat Hostiles . | . . . . . Follow-up Attacks . | . . . . . Damage Inflicted 1387 | . 612 338 162 275 Guns 624 | . 375 157 76 16 Cannons 416 | . 157 173 86 . Explosions . | . . . . . Melee 259 | . . . . 259 Ramming 88 | . 80 8 . . Kinetic 215 | . 215 . . . Thermal 697 | . 189 330 162 16 Explosive . | . . . . . Electromagnetic 128 | . 128 . . . Impact . | . . . . . Slashing 259 | . . . . 259 Piercing . | . . . . . Highest Corruption . | . . . . . Average Corruption . | . . . . . Corruption Purged . | . . . . . Corruption Blocked . | . . . . . Overload Shots . | . . . . . Overflow Damage 42 | . 16 . . 26 Projectiles . | . . . . . Explosions . | . . . . . Melee 42 | . 16 . . 26 Knockbacks . | . . . . . Impact . | . . . . . Kinetic . | . . . . . Secondary . | . . . . . Self-Inflicted Damage 41 | . 38 3 . . Shots . | . . . . . Rammed 7 | . 6 1 . . Targets Rammed 8 | . 6 2 . . Kicked 1 | . . 1 . . Crushed . | . . . . . Highest Temperature 530 | . 126 530 315 20 Average Temperature 133 | . 35 215 138 10 Received Heat Transfer 492 | . 300 183 . 9 Effects 5 | . . 5 . . Shutdowns 2 | . . 2 . . Energy Bleed 1 | . . 1 . . Matter Decay 1 | . . 1 . . Short Circuit 1 | . . 1 . . Siege Activations . | . . . . . Robots Corrupted 1 | . 1 . . . Combat Hostiles . | . . . . . Parts Fried . | . . . . . Impact Corruptions 1 | . 1 . . . Robots Melted . | . . . . . Combat Hostiles . | . . . . . Parts Melted 3 | . . 2 1 . Heat Transferred 1480 | . 407 740 296 37 Parts Sabotaged . | . . . . . Parts Stolen . | . . . . . Parts Stripped . | . . . . . Power Chain Reactions . | . . . . . Alert | -11 -10 -10 -10 -9 ------- Run | Yrd Mat Min Exi Min Peak Influence 191 | . 191 108 . 103 Initial 8 | . . 8 . . Average 27 | . 52 24 . 9 Maximum Alert Level . | . . . . . Low Security (%) 100 | 100 100 100 . 100 Level 1 . | . . . . . Level 2 . | . . . . . Level 3 . | . . . . . Level 4 . | . . . . . Level 5 . | . . . . . High Security . | . . . . . Max Security . | . . . . . Squads Dispatched 1 | . 1 . . . Investigation 1 | . 1 . . . Extermination . | . . . . . Reinforcement . | . . . . . Assault . | . . . . . Garrison . | . . . . . Intercept . | . . . . . Searches Triggered . | . . . . . Construction Impeded . | . . . . . Haulers Reinforced . | . . . . . Active Scanning Responses . | . . . . . Cargo Convoy Interrupts . | . . . . . Stealth | -11 -10 -10 -10 -9 --------- Run | Yrd Mat Min Exi Min Distress Signals . | . . . . . Communications Jammed . | . . . . . Distress Signals . | . . . . . Times Spotted 27 | . 15 6 . 6 Peak Tracking Total 4 | . 4 2 . 4 Tactical Retreats 1 | . 1 . . . Traps | -11 -10 -10 -10 -9 ------- Run | Yrd Mat Min Exi Min Traps Triggered 1 | . 1 . . . Indirectly . | . . . . . Trap Hack Attempts . | . . . . . Triggered . | . . . . . Disarmed . | . . . . . Reprogrammed . | . . . . . Reused . | . . . . . Traps Extracted . | . . . . . Installed . | . . . . . Triggered . | . . . . . Most Traps Carried 3 | . . 3 3 3 Machines | -11 -10 -10 -10 -9 ---------- Run | Yrd Mat Min Exi Min Machines Disabled 2 | . 1 . . 1 Max in Single Turn 1 | . 1 . . . Machines Repaired . | . . . . . Machines Dismantled . | . . . . . Machines Sabotaged . | . . . . . Overloaded Fab Kills . | . . . . . Hacking | -11 -10 -10 -10 -9 --------- Run | Yrd Mat Min Exi Min Machines Accessed 10 | . 6 . 4 . Terminals 4 | . 4 . . . Fabricators . | . . . . . Repair Stations 1 | . 1 . . . Recycling Units 1 | . 1 . . . Scanalyzers . | . . . . . Garrison Access . | . . . . . Total Hacks 82 | . 33 . 49 . Successful 78 | . 29 . 49 . Failed 4 | . 4 . . . Catastrophic . | . . . . . Database Lockouts . | . . . . . Manual 2 | . . . 2 . Terminals 16 | . 16 . . . Fabricators . | . . . . . Repair Stations 14 | . 14 . . . Recycling Units 3 | . 3 . . . Scanalyzers . | . . . . . Garrison Access . | . . . . . Terminal Hacks 61 | . 12 . 49 . Record 53 | . 4 . 49 . Branch Access Points 1 | . 1 . . . Emergency Access Points 1 | . 1 . . . Alert Level 1 | . 1 . . . Locate Traps 1 | . 1 . . . Dispatch Records 1 | . 1 . . . Recall Investigation 1 | . 1 . . . Hauler Manifests 1 | . 1 . . . Zone Layout 1 | . 1 . . . Fabricator Hacks . | . . . . . Repair Station Hacks 14 | . 14 . . . Scan Component 7 | . 7 . . . Repair 7 | . 7 . . . Recycling Unit Hacks 3 | . 3 . . . Recycle Component 1 | . 1 . . . Process 1 | . 1 . . . Report Inventory 1 | . 1 . . . Scanalyzer . | . . . . . Garrison Access Hacks . | . . . . . Unauthorized Hacks . | . . . . . Terminals . | . . . . . Fabricators . | . . . . . Repair Stations . | . . . . . Recycling Units . | . . . . . Scanalyzers . | . . . . . Garrison Access . | . . . . . Data Cores Recovered . | . . . . . Used . | . . . . . Hacking Detections 6 | . 6 . . . Full Trace Events . | . . . . . Feedback Events . | . . . . . Feedback Blocked . | . . . . . Robot Schematics Acquired . | . . . . . Robots Built . | . . . . . Authchips . | . . . . . Time . | . . . . . Total Robot Build Rating . | . . . . . Part Schematics Acquired . | . . . . . Parts Built . | . . . . . Authchips . | . . . . . Time . | . . . . . Total Part Build Rating . | . . . . . Parts Repaired 7 | . 7 . . . Time 188 | . 188 . . . Parts Recycled 1 | . 1 . . . Recycled Matter 75 | . 75 . . . Retrieved Matter . | . . . . . Retrieved Components . | . . . . . Parts Scanalyzed . | . . . . . Part Schematics Acquired . | . . . . . Parts Damaged . | . . . . . Bothacking | -11 -10 -10 -10 -9 ------------ Run | Yrd Mat Min Exi Min Used RIF Installer . | . . . . . Robots Hacked . | . . . . . Non-combat . | . . . . . Combat . | . . . . . Robot Hacks Applied . | . . . . . Relay Couplers Released . | . . . . . Fabnet Peak Effective % . | . . . . . Robots Rewired 3 | . . . 3 . Allies Hacked . | . . . . . Hacks Repelled . | . . . . . Allies | -11 -10 -10 -10 -9 -------- Run | Yrd Mat Min Exi Min Total Allies 5 | . . . 3 2 Largest Group 5 | . . . 3 5 Highest-Rated Group 95 | . . . 50 95 Highest-Rated Ally 31 | . . . 21 31 Total Orders . | . . . . . Ally Attacks 10 | . . . . 10 Total Damage 137 | . . . . 137 Kills 3 | . . . . 3 Allies Corrupted . | . . . . . Allies Melted . | . . . . . Intel | -11 -10 -10 -10 -9 ------- Run | Yrd Mat Min Exi Min Robot Analysis Total . | . . . . . Derelict Logs Recovered 3 | . . 1 . 2 Drone Launches . | . . . . . Drone Recoveries . | . . . . . Exploration | -11 -10 -10 -10 -9 ------------- Run | Yrd Mat Min Exi Min Turns Passed 7154 | 115 1161 1415 3133 1330 Spaces Moved 1980 | 65 413 409 771 322 Core 8 | 8 . . . . Treads 273 | 57 216 . . . Legs 1393 | . . 300 771 322 Wheels 306 | . 197 109 . . Hover . | . . . . . Flight . | . . . . . Fastest Speed 50 | 50 135 135 400 400 Average Speed 337 | 146 207 331 400 400 Slowest Speed 480 | 160 480 400 400 400 Overloaded Moves . | . . . . . Propulsion Burnouts . | . . . . . Robots Hopped . | . . . . . Cave-ins Triggered . | . . . . . Exploration Rate (%) 59 | 5 64 72 81 73 Regions Visited 4 Branch Regions 3 Pre-discovered Areas 2 | . . 1 1 . Known Exits Taken 1 | . 1 . . . Unknown Exits Taken 3 | 1 . 1 1 . Scrap Searched 2 | . . . . 2 Spaces Dug . | . . . . . Terrain Destroyed . | . . . . . Melee . | . . . . . Projectile . | . . . . . AOE . | . . . . . Terrain Rammed . | . . . . . Walls Destroyed . | . . . . . Machines Disabled . | . . . . . Actions | -11 -10 -10 -10 -9 --------- Run | Yrd Mat Min Exi Min Total 2342 | 84 654 441 812 351 Wait 169 | . 164 2 . 3 Move 1976 | 64 412 408 770 322 Hop . | . . . . . Pick Up 58 | 12 31 4 6 5 Fast Attach . | . . . . . Attach 16 | 6 6 2 2 . Detach 2 | . . . 2 . Swap 13 | 2 5 . 3 3 Drop 18 | . 1 7 4 6 Fire 53 | . 29 16 6 2 Melee 10 | . . . . 10 Ram 6 | . 5 1 . . Kick 1 | . . 1 . . Crush 1 | . 1 . . . Escape Stasis . | . . . . . Rewire 19 | . . . 19 . Trap . | . . . . . Miscellaneous . | . . . . . Route ------- -11/Scrapyard -10/Materials (discovered 5 exits: [*Mat x3] / *Min x2) -10/Mines (discovered 3 exits: [*Mat] / *Exi / [*Sub]) -10/Exiles (discovered 2 exits: [*Min x2]) -9/Mines (discovered 1 exit: [*Mat]) History --------- Turn | Location | Event 37 | -11/Scrapyard | Discovered new exit (range 16) 116 | -11/Scrapyard | Entered Materials 184 | -10/Materials | Identified exit to Mines 305 | -10/Materials | Build established: Mutant 433 | -10/Materials | Discovered new exit (range 13) 686 | -10/Materials | Discovered new exit (range 10) 968 | -10/Materials | Repaired Beam Cannon 1003 | -10/Materials | Repaired Particle Gun 1030 | -10/Materials | Repaired Aluminum Leg 1057 | -10/Materials | Repaired Assault Rifle 1084 | -10/Materials | Repaired Ion Engine 1112 | -10/Materials | Repaired Lgt. Treads 1139 | -10/Materials | Repaired Aluminum Leg 1144 | -10/Materials | Discovered new exit (range 12) 1277 | -10/Materials | Entered Mines 1288 | -10/Mines | Learned location of Storage (-7) 1330 | -10/Mines | Core integrity fell below 50% 1365 | -10/Mines | Discovered new exit (range 16) 1465 | -10/Mines | Found a hidden stash of uninstalled traps 2326 | -10/Mines | Discovered new exit (range 8) 2676 | -10/Mines | Deemed a non-threat by the Exiles lab entrance 2676 | -10/Mines | Discovered new exit (range 5) 2692 | -10/Mines | Entered Exiles 2692 | -10/Exiles | Found Exiles lab destroyed 2823 | -10/Exiles | Discovered new exit (range 14) 3208 | -10/Exiles | Learned location of Zion (-7) 5550 | -10/Exiles | Discovered new exit (range 14) 5825 | -10/Exiles | Entered Mines 5825 | -9/Mines | Accompanied by 3 allies 5897 | -9/Mines | Learned location of 1 exit from Lower Caves 6049 | -9/Mines | Learned Materials emergency access door positions 6238 | -9/Mines | A weapon hastily lodged in a ceiling crevice suddenly fell to the ground 6842 | -9/Mines | Discovered new exit (range 8) 7017 | -9/Mines | Core integrity fell below 20% 7155 | -9/Mines | Destroyed by G-47 Trooper with Particle Gun Last Messages --------------- A pair of derelicts emerge from the shadows: "We're, um, lost. You wouldn't happen to know the way out of here, would you?" EXIT=FOUND Slug penetrates Wall. U6-Y18(g) suffers critical hit (Burn). Destroyed Lgt. Ion Engine. Destroyed Flight Unit. S-10 Pest destroyed. Acquired 10 matter. S-10 Pest destroyed. R-06 Scavenger collects Heat Sink. Destroyed Flight Unit. S-10 Pest destroyed. Dropped Aluminum Leg. Dropped Mining Laser. Acquired 10 matter. Acquired Flight Unit. C-30 ARC bursts open, deploying its payload. G-47 Trooper unfolds itself. Map ----- +----------------------------------------------------+ | ???????## < #??????# #??? | | ????????## #??????# ??? | | ?????????# #??????#####?? | | ???????### ##???????????? | | ???????# #???????????? | | ???????# #???????????? | | ???????## ##???????????? | | ????????## ###????????????? | | ?????????## ##??????????????? | | ??????????## #???????????????? | | ???????????# #???????????????? | | ???????????# #???????????????? | | ???????????# #???????????????? | | ???????????# #???????????????? | | ???###?????# #???????????????? | | ???? ???# #???????????????? | | ???? """ ??# #???????????????? | | ???# """%[## #???????????????? | | ???# "" ==%! #???????????????? | | ???# *##[#???????????????? | | ???# ??#%#???????????????? | | ?????###???#%#???????????????? | | ???????????#*#???????????????? | | ??????????##=####????????????? | | ????#######%[=[=#????????????? | | ????#@g hghz"""|#????????????? | | ????# ##### """ #????????????? | | ????# #???# """ #????????????? | | ???? ???# #????????????? | | ??? %g ???# #????????????? | | ??# ???#######????????????? | | ??# ??????????????????????? | | ??# ?????????????????????? | | ??? ?????????????????????? | | ???#####?????????????????????? | | ?????????????????????????????? | | ?????????????????????????????? | | ?????????????????????????????? | | ?????????????????????????????? | | ?????????????????????????????? | | ?????????????????????????????? | | ?????????????????????????????? | | ?????????????????????????????? | | ?????????????????????????????? | | ?????????????????????????????? | | | | | | | | | | | +----------------------------------------------------+ Best States ------------- Heat Dissipation 25 Energy Generation 15 Energy Capacity 250 Matter Stores 300 Matter Capacity 300 Sight Range 16 Robot Scan Range 19 Terrain Scan Range 14 Terrain Scan Density 10 Resistance: KI 20 Resistance: TH 20 Resistance: EX 20 Resistance: EM 20 Resistance: I 20 Resistance: S 20 Resistance: P 20 Propulsion Shielding 33 Evasion (%) 50 Recoil Reduction 2 Offensive Hacking 10 Item Schematics ----------------- None Robot Schematics ------------------ None Fabricated ------------ Nothing Alien Tech Used ----------------- None Achievements -------------- A New Friend Challenges ------------ None Game ------ Seed WeaponsThermicFilter Manual? 0 Play Time 00:34:39 Cumulative 15.6 hours Start 2025.03.07 @ 00:40:27 End 2025.03.07 @ 13:26:48 Sessions 1 Manual Loads 0 Difficulty Adventurer Special Mode None Game No. 27 Rogue 20 Adventurer 7 Explorer 0 Win Type - Total 0 Types 0/0/0/0/0/0/0/0/0 Lore% 13 Gallery% 19 Achievement% 19 Wizard Run 0 Options --------- Layout 1 ASCII 0 Keyboard 0 Movement Mouse Keybinds 0 Fullscreen 1 Font 32/SmallcapsGlow Map View 50x35 Zoom Use 0% Tactical HUD 0 Map Filters NONE Filters NONE Steam 1 RUN: 64b9e50d-77c6-4fe1-9239-fb492cdf2116